[Event "Austrian Championship 2022"]
[Site "Vienna"]
[Date "2022.08.19"]
[Round "9.5"]
[White "Tumanyan, Gor"]
[Black "Oberhuber, Alexander"]
[Result "1-0"]
[ECO "B27"]
[WhiteElo "1884"]
[BlackElo "2062"]
[Annotator "TA"]
[PlyCount "39"]
[EventDate "2022.08.12"]
[EventType "swiss"]
[EventCountry "AUT"]
[SourceTitle "playchess.com"]
[Source "ChessBase"]
[SourceQuality "1"]
[TimeControl "40/5400+30:1800+30"]

{[%evp 14,39,47,40,50,58,53,-19,0,0,0,-18,0,-28,-25,-37,73,75,174,162,162,162,157,149,272,236,557,450]} 1. e4 {[%emt 0:00:08]} c5 {[%emt 0:00:09]} 2. Nf3 {[%emt 0:00:22]} g6 {[%emt 0:00:08]} 3. d4 {[%emt 0:01:00]} cxd4 {[%emt 0:00:02]} 4. Qxd4 {[%emt 0:00:17]} Nf6 {[%emt 0:00:16]} 5. e5 {[%emt 0:00:09]} Nc6 {[%emt 0:00:07]} 6. Qa4 {[%emt 0:00:15]} Nd5 {[%emt 0:01:03]} 7. Qe4 {[%emt 0:00:43]} Nc7 {[%emt 0:03:47]} 8. Nc3 {[%emt 0:00:47]} Bg7 {[%emt 0:00:40] B27: Sicilian: 2 Nf3, unusual Black 2nd moves.} 9. Bf4 $1 {[%emt 0:01:40]} Ne6 {[%emt 0:03:39] [#]} 10. Bd2 $146 {[%emt 0:18:05]} (10. O-O-O $14) ({Predecessor:} 10. Bg3 Rb8 11. O-O-O a6 12. h4 b5 13. h5 Bb7 14. Nd5 Rc8 15. Kb1 Na5 16. h6 {0-1 (26) Wieczorek,O (2484)-Savchenko,B (2636) Chess.com INT 2017}) 10... O-O {[%emt 0:10:04] The position is equal.} 11. O-O-O {[%emt 0:04:57]} d6 {[%emt 0:01:50][%cal Rd6e5]} 12. exd6 {[%emt 0:05:23]} exd6 {[%emt 0:04:12]} 13. h4 {[%emt 0:04:51]} Nc5 {[%emt 0:03:21]} 14. Qf4 {[%emt 0:02:54]} Be6 {[%emt 0:02:29]} (14... Qb6 $1 $15 {stays ahead.}) 15. h5 $36 {[%emt 0:07:46][%mdl 2048] White is on the roll.} Qa5 {[%emt 0:02:49] Inhibits b4.} (15... Rc8 $16) 16. hxg6 {[%emt 0:04:21]} fxg6 {[%emt 0:02:13] [#]} 17. Qh4 {[%emt 0:01:32] Really sharp!} h5 {[%emt 0:05:40]} 18. Ng5 {[%emt 0:06:43] Threatens to win with Bc4.} Nb4 {[%emt 0:04:49]} (18... Bxa2 $2 19. Nxa2 Qd8 20. Bc4+ d5 21. Be3 $18) (18... d5 $16) 19. Nxe6 {[%emt 0:11:00]} Nxe6 {[%emt 0:12:24]} (19... Bxc3 20. Bc4 (20. Bxc3 Nxa2+ 21. Kb1 Nxc3+ 22. bxc3 Nxe6 $16) (20. Nxf8 $2 Bxb2+ 21. Kxb2 Qxa2+ 22. Kc3 Qxc2+ 23. Kd4 Nb3+ 24. Ke3 Qc5+ 25. Kf3 Nd4+ 26. Kg3 Nf5+ 27. Kh2 Nxh4 $19) 20... Bxd2+ 21. Rxd2 Nxe6 22. Rxd6 (22. Bxe6+ Kg7 $16) 22... Kh7) 20. Bc4 {[%emt 0:04:32] Weighted Error Value: White=0.15 (very precise) /Black=0.68} 1-0

[Event "Austrian Championship 2022"]
[Site "Vienna"]
[Date "2022.08.19"]
[Round "9.6"]
[White "Ernst, Robert"]
[Black "Fuchs, Patrick"]
[Result "1/2-1/2"]
[ECO "D20"]
[WhiteElo "2001"]
[BlackElo "1990"]
[Annotator "TA"]
[PlyCount "58"]
[EventDate "2022.08.12"]
[EventType "swiss"]
[EventCountry "AUT"]
[SourceTitle "playchess.com"]
[Source "ChessBase"]
[SourceQuality "1"]
[TimeControl "40/5400+30:1800+30"]

{[%evp 9,58,41,51,75,72,70,70,73,82,65,66,75,72,-51,-45,-29,-43,-35,0,0,0,0,0,0,0,0,14,-46,-41,-22,6,-20,-28,-49,-56,-243,-240,-236,-237,-208,-215,-207,-210,-259,-259,-254,-267,-261,-254,-238,-75]} 1. d4 {[%emt 0:00:03]} d5 {[%emt 0:00:07]} 2. c4 {[%emt 0:00:35]} dxc4 {[%emt 0:00:09]} 3. e4 {[%emt 0:00:14]} b5 {[%emt 0:00:06]} 4. a4 {[%emt 0:00:11]} c6 {[%emt 0:00:05]} 5. axb5 {[%emt 0:00:18]} cxb5 {[%emt 0:00:06]} 6. Nc3 {[%emt 0:00:13] D20: Queen's Gambit Accepted: 3 e3 and 3 e4.} Qb6 $1 {[%emt 0:00:07][%mdl 4] outshines the older 6...a6.} 7. Nd5 {[%emt 0:00:41]} Qb7 {[%emt 0:00:09]} 8. Bf4 {[%emt 0:00:14] Nc7+ is the strong threat. White is slightly better.} e5 {[%emt 0:00:06]} 9. Bxe5 {[%emt 0:02:27] Hoping for Ne2.} Nd7 $1 {[%emt 0:00:08]} 10. Bf4 {[%emt 0:06:05] Threatens to win with f3. 0x0.001b8411e641dp-1022s more active pieces.} Ngf6 {[%emt 0:00:09]} 11. Nxf6+ {[%emt 0:01:10]} ({White has to play} 11. Nc7+ $1 $16 Kd8 12. Nxa8) 11... Nxf6 $15 {[%emt 0:00:26]} 12. f3 {[%emt 0:00:32]} Bb4+ {[%emt 0:08:48]} 13. Bd2 {[%emt 0:02:38]} Bxd2+ {[%emt 0:01:12]} 14. Qxd2 {[%emt 0:00:01]} O-O {[%emt 0:00:21]} 15. Ne2 {[%emt 0:02:23]} Re8 {[%emt 0:04:15]} 16. Ng3 {[%emt 0:07:07]} Qb6 {[%emt 0:00:39]} 17. Be2 {[%emt 0:02:05]} Rd8 {[%emt 0:08:47]} 18. Rd1 {[%emt 0:07:56]} ({White should try} 18. Qa5 $1 $11 Bb7 19. Qxb6 axb6 20. Rxa8 Rxa8 21. Kd2) 18... a5 $1 {[%emt 0:00:06]} 19. O-O {[%emt 0:00:42] [#]} Ba6 $146 {[%emt 0:01:51]} (19... a4 $5 {[%cal Ra4a3]}) ({Predecessor:} 19... a4 20. f4 Bb7 21. e5 Nd5 22. Nh5 f5 23. g4 Ne7 24. Ng3 g6 25. Rf2 a3 26. bxa3 {1-0 (53) Chen,J (2263)-Dev,S (2243) Budapest 2021}) 20. Kh1 {[%emt 0:03:50]} b4 {[%emt 0:00:13][%cal Oc4c3,Bb5b4,Bb4c3][%mdl 32]} 21. Nf5 {[%emt 0:03:24]} g6 {[%emt 0:07:51]} (21... c3 $5 22. bxc3 (22. Qg5 Ne8 $11) 22... Bxe2 23. Qxe2 g6 $11) 22. Ne3 {[%emt 0:19:39] White does not recover from this.} ({White should play} 22. Qg5 $15) 22... c3 $1 $19 {[%emt 0:06:24]} 23. bxc3 {[%emt 0:01:08]} bxc3 {[%emt 0:00:20]} 24. Qc2 {[%emt 0:00:26] [#]} Bxe2 {[%emt 0:01:52]} ({Stronger than} 24... Rxd4 25. Bxa6 Rxd1 26. Nxd1 $17) 25. Qxe2 {[%emt 0:00:01]} Rxd4 {[%emt 0:00:26]} 26. Nc4 {[%emt 0:00:43]} Qc5 {[%emt 0:00:50]} 27. Rxd4 {[%emt 0:00:23]} Qxd4 {[%emt 0:00:17]} 28. Rd1 {[%emt 0:00:15]} Qc5 {[%emt 0:00:43] And now ...a4 would win.} 29. Rc1 {[%emt 0:00:59]} Qe7 $2 {[%emt 0:16:02] Weighted Error Value: White=0.35/Black=0.03 (flawless)} (29... Rb8 $19 {has better winning chances.} 30. Qd3 {[#]} Nd7 $1) 1/2-1/2

[Event "Austrian Championship 2022"]
[Site "Vienna"]
[Date "2022.08.19"]
[Round "9.7"]
[White "Schroll, Gerhard"]
[Black "Balinov, Ilia"]
[Result "1/2-1/2"]
[ECO "D90"]
[WhiteElo "2281"]
[BlackElo "2419"]
[Annotator "TA"]
[PlyCount "45"]
[EventDate "2022.08.12"]
[EventType "swiss"]
[EventCountry "AUT"]
[SourceTitle "playchess.com"]
[Source "ChessBase"]
[SourceQuality "1"]
[TimeControl "40/5400+30:1800+30"]

{[%evp 22,45,46,46,40,14,20,25,33,42,20,4,11,0,11,28,18,9,35,19,21,29,18,7,9,9]} 1. d4 {[%emt 0:00:47]} Nf6 {[%emt 0:00:07]} 2. c4 {[%emt 0:00:12]} g6 {[%emt 0:00:20]} 3. Nc3 {[%emt 0:00:05]} d5 {[%emt 0:00:24]} 4. cxd5 {[%emt 0:00:09]} Nxd5 {[%emt 0:00:05]} 5. Bd2 {[%emt 0:00:08]} Bg7 {[%emt 0:07:55]} 6. e4 {[%emt 0:00:52]} Nb6 {[%emt 0:00:49]} 7. Be3 {[%emt 0:00:15]} O-O {[%emt 0:00:18]} 8. Nf3 {[%emt 0:00:47]} Bg4 {[%emt 0:02:04]} 9. Be2 {[%emt 0:02:43]} Nc6 {[%emt 0:00:05]} 10. d5 {[%emt 0:12:45]} Bxf3 {[%emt 0:00:55]} 11. gxf3 {[%emt 0:00:04]} Ne5 {[%emt 0:01:35]} 12. Qb3 $1 {[%emt 0:04:47]} c6 {[%emt 0:04:25] D90: Grünfeld: 4 Nf3 Bg7 sidelines.} 13. O-O-O {[%emt 0:10:21]} (13. f4 $5 {[%cal Rf4e5]} Ned7 14. dxc6 bxc6 15. h4 $16) 13... cxd5 {[%emt 0:12:59]} 14. Nxd5 {[%emt 0:00:26]} Qc8+ {[%emt 0:12:57] White has an edge.} 15. Kb1 {[%emt 0:02:40]} Nxd5 {[%emt 0:00:05] [#]} 16. Qxd5 $146 {[%emt 0:02:50]} ({Predecessor:} 16. Rxd5 Qh3 17. Bd4 Nd7 18. Bxg7 Kxg7 19. Qxb7 Qg2 20. Rf1 Nf6 21. Ra5 Rfe8 22. Rxa7 Rxa7 23. Qxa7 Nxe4 {½-½ (44) Grabuzova,T (2380)-Peptan,C (2255) Timisoara 1994}) 16... Qh3 {[%emt 0:01:27]} 17. f4 {[%emt 0:03:07]} ({Much weaker is} 17. Qxb7 Rab8 18. Qa6 (18. Qxe7 $2 Rxb2+ 19. Kxb2 Nc6+ 20. Kc2 Nxe7 $19) 18... Nxf3 $17) 17... Ng4 {[%emt 0:03:38]} 18. Bxg4 {[%emt 0:21:45]} (18. Qxb7 $2 Rab8 19. Bxg4 Qxg4 20. Qxb8 Rxb8 $19) 18... Qxg4 {[%emt 0:00:04]} 19. h3 {[%emt 0:01:17]} (19. Qxb7 Rab8 20. Qc7 Rxb2+ 21. Kc1 Rbb8 $19) 19... Qh4 {[%emt 0:03:40][%cal Oe7e5]} 20. Qg5 {[%emt 0:02:44]} ({Don't go for} 20. Qxb7 $2 Rab8 21. Qd7 Rxb2+ 22. Kc1 Rxa2 $19) 20... Qxg5 {[%emt 0:04:10]} 21. fxg5 {[%emt 0:00:02]} Rfd8 {[%emt 0:00:21] Against Rd7} 22. Rxd8+ {[%emt 0:11:25]} Rxd8 {[%emt 0:00:05]} 23. Rc1 {[%emt 0:00:41] Weighted Error Value: White=0.07 (flawless) /Black=0.05 (flawless)} 1/2-1/2

[Event "Austrian Championship 2022"]
[Site "Vienna"]
[Date "2022.08.19"]
[Round "9.8"]
[White "Schreiner, Peter"]
[Black "Neumeier, Klaus"]
[Result "1-0"]
[ECO "E05"]
[WhiteElo "2416"]
[BlackElo "2257"]
[Annotator "TA"]
[PlyCount "103"]
[EventDate "2022.08.12"]
[EventType "swiss"]
[EventCountry "AUT"]
[SourceTitle "playchess.com"]
[Source "ChessBase"]
[SourceQuality "1"]
[TimeControl "40/5400+30:1800+30"]

{[%evp 13,103,3,20,15,30,21,26,21,17,35,17,14,66,50,55,59,62,60,90,79,97,75,106,55,58,52,51,43,77,67,85,79,58,46,61,52,77,50,50,44,105,47,108,108,99,97,126,126,134,112,116,129,170,140,173,188,220,139,292,291,473,114,118,115,113,113,253,259,248,241,250,244,345,247,544,552,522,558,558,542,510,487,618,611,564,558,5725,6390,6079,5341,1732,1401]} 1. Nf3 {[%emt 0:03:12]} d5 {[%emt 0:00:27]} 2. g3 {[%emt 0:00:16]} Nf6 {[%emt 0:02:12]} 3. Bg2 {[%emt 0:00:09]} e6 {[%emt 0:01:41]} 4. O-O {[%emt 0:04:08]} Be7 {[%emt 0:00:43]} 5. d4 {[%emt 0:05:06]} O-O {[%emt 0:00:56]} 6. c4 {[%emt 0:00:05]} dxc4 {[%emt 0:02:28]} 7. Qc2 {[%emt 0:01:09]} b5 {[%emt 0:02:29]} 8. a4 {[%emt 0:00:52] E05: Open Catalan: 5 Nf3 Be7.} Bb7 {[%emt 0:00:54]} 9. axb5 {[%emt 0:00:21]} a6 {[%emt 0:00:13]} 10. Nc3 {[%emt 0:02:44] Inhibits Be4. White has an edge.} axb5 {[%emt 0:04:53]} 11. Rxa8 {[%emt 0:01:09]} Bxa8 {[%emt 0:00:06]} 12. Nxb5 {[%emt 0:00:14] [#]} c6 $146 {[%emt 0:05:44]} ({Better is} 12... Nbd7 $11) ({Predecessor:} 12... Bd5 13. Bf4 c5 14. dxc5 Qa5 15. Nc3 Qxc5 16. Be3 Qa5 17. Bd2 Ba8 18. Nd1 Qc5 {½-½ (37) Nepomniachtchi,I (2766)-Radjabov,T (2753) Madrid 2022}) 13. Na3 $14 {[%emt 0:06:16] White is more active.} c5 {[%emt 0:01:52]} 14. dxc5 {[%emt 0:04:15]} Bxc5 {[%emt 0:01:09]} 15. Nxc4 {[%emt 0:03:04]} Be4 {[%emt 0:04:05]} 16. Qa4 {[%emt 0:04:37]} Bc6 {[%emt 0:06:25]} 17. Qb3 {[%emt 0:16:36]} Na6 {[%emt 0:04:17]} 18. Nce5 {[%emt 0:03:24]} ({White should play} 18. Nfe5 $16 Bd5 19. Bf4) 18... Bd5 {[%emt 0:00:38]} 19. Qa4 {[%emt 0:02:00]} Qa8 {[%emt 0:07:37]} 20. Nd3 {[%emt 0:01:01]} Be7 {[%emt 0:01:01]} 21. Bg5 {[%emt 0:02:15]} Qb7 {[%emt 0:04:22]} 22. Bxf6 {[%emt 0:04:22]} Bxf6 {[%emt 0:00:42]} 23. Nfe1 {[%emt 0:01:51]} Ra8 {[%emt 0:04:54]} 24. Bxd5 {[%emt 0:03:10]} Qxd5 {[%emt 0:01:14]} 25. Qc2 {[%emt 0:06:14]} (25. Nf4 $5 {[%cal Rf4d5]} Qb7 26. Ned3 $14) 25... Rb8 {[%emt 0:03:00]} 26. Nf3 {[%emt 0:03:03]} g6 {[%emt 0:04:12]} (26... Qd6 $14) 27. Qa4 {[%emt 0:02:18]} (27. Ra1 $1 $16 {[%cal Ra1a6]} Qb7 28. Ra4) 27... Qb5 {[%emt 0:04:13]} (27... Nb4 $1 $14 28. Rd1 (28. Nxb4 Qe4 $14) 28... Qb5 29. Qxb5 Rxb5) 28. Qf4 $16 {[%emt 0:04:15]} Kg7 {[%emt 0:02:32]} 29. Rc1 {[%emt 0:03:34][%cal Bf1c1,Bc1c4,Bc4f4][%mdl 32]} Rb7 {[%emt 0:09:31]} 30. h4 {[%emt 0:02:53]} (30. Rc8 Nb4 $14) 30... h5 {[%emt 0:00:30]} 31. b4 {[%emt 0:06:12]} (31. Rc8 Nb4 $14) 31... Qd5 {[%emt 0:13:41]} 32. Rc4 {[%emt 0:02:29]} Rb5 {[%emt 0:01:39]} 33. Qc1 {[%emt 0:01:13]} (33. Rc8 e5 34. Qc1 Nxb4 $11) 33... Qb7 {[%emt 0:01:41][%cal Ra6b4]} 34. Ng5 {[%emt 0:00:43] Pair of Knights!} Qd5 {[%emt 0:02:32]} (34... Nxb4 35. Rc7 Nxd3 36. Rxb7 Nxc1 37. Rxb5) 35. Rf4 {[%emt 0:01:36][%cal Of4f6] Hoping for Rxf6!} Bxg5 {[%emt 0:01:51]} (35... e5 $16 {was worth a try.} 36. Rc4 Rb7) 36. hxg5 $18 {[%emt 0:00:06]} Qxg5 $2 {[%emt 0:00:14]} (36... e5 {keeps fighting.}) 37. Qa1+ $2 {[%emt 0:01:12]} (37. Qc3+ $18 {and White stays clearly on top.} e5 38. Rxf7+ $3 {[%mdl 512]} Kxf7 39. Qc4+ Kf8 40. Qxb5) 37... e5 $16 {[%emt 0:00:06]} 38. Re4 {[%emt 0:00:26]} Qf6 {[%emt 0:01:03]} 39. Qc3 {[%emt 0:00:56]} Qd6 {[%emt 0:01:35]} (39... Rb7 $16 40. Kg2 (40. Qxe5 Qxe5 41. Rxe5 Nxb4 $11) (40. Rxe5 Nxb4 41. Nf4 Rb6 $11) 40... Rb6) 40. Nxe5 $18 {[%emt 0:00:31]} Qf6 {[%emt 0:00:00][%cal Oa6b4]} 41. f4 {[%emt 0:02:57] And now Rc4 would win.} Rb7 {[%emt 0:03:32] [#]} (41... Qb6+ $2 42. e3 Qf6 43. Rc4 $18) 42. Rc4 {[%emt 0:04:02] Inhibits Nc7. aiming for Rc6.} Nb8 {[%emt 0:02:38] Prevents Rc6.} (42... Qe7 $142 43. f5 Nxb4 44. Nc6+ Qf6) 43. Kg2 {[%emt 0:02:23]} Kh7 $2 {[%emt 0:05:05]} (43... Qe7 44. Ng4+ f6) 44. Rc7 {[%emt 0:06:10] White is clearly winning.} Rxc7 {[%emt 0:00:50]} 45. Qxc7 {[%emt 0:00:03][%mdl 4096] Endgame KQN-KQN} Na6 {[%emt 0:00:07]} 46. Qb7 {[%emt 0:02:46]} Kg7 {[%emt 0:00:25]} 47. b5 {[%emt 0:04:31][%cal Bb4b5,Bb5b6][%mdl 32]} Nc5 {[%emt 0:01:16]} 48. Qa7 {[%emt 0:02:37]} Ne6 {[%emt 0:00:22]} 49. b6 {[%emt 0:00:49] Strongly threatening b7.} h4 {[%emt 0:01:32]} 50. Qxf7+ {[%emt 0:00:16]} Qxf7 {[%emt 0:00:06]} 51. Nxf7 {[%emt 0:00:03]} Nc5 {[%emt 0:00:19]} 52. Nd8 {[%emt 0:01:23] Weighted Error Value: White=0.27 (precise) /Black=0.41} 1-0

[Event "Austrian Championship 2022"]
[Site "Vienna"]
[Date "2022.08.19"]
[Round "9.9"]
[White "Kilgus, Georg"]
[Black "Kruckenhauser, Arthur"]
[Result "1-0"]
[ECO "C10"]
[WhiteElo "2386"]
[BlackElo "2303"]
[Annotator "TA"]
[PlyCount "115"]
[EventDate "2022.08.12"]
[EventType "swiss"]
[EventCountry "AUT"]
[SourceTitle "playchess.com"]
[Source "ChessBase"]
[SourceQuality "1"]
[TimeControl "40/5400+30:1800+30"]

{[%evp 9,115,38,60,33,45,60,47,47,39,39,79,74,76,76,70,85,116,114,89,117,104,111,105,112,125,75,81,73,170,91,102,75,89,74,79,77,74,66,75,71,79,72,148,154,189,186,203,208,251,139,147,128,155,120,125,112,104,82,91,86,68,58,66,84,247,253,252,255,248,237,268,262,266,271,495,453,457,449,719,658,546,553,659,628,847,842,734,518,29976,29977,29977,29978,29978,29979,29979,29980,29980,29981,29981,29982,29982,29983,29983,29984,29984,29984,29986,29986]} 1. e4 {[%emt 0:00:02]} e6 {[%emt 0:00:35]} 2. d4 {[%emt 0:03:39]} d5 {[%emt 0:00:12]} 3. Nc3 {[%emt 0:00:44]} Nc6 {[%emt 0:00:09]} 4. e5 {[%emt 0:15:33]} f6 {[%emt 0:00:24]} 5. Bb5 {[%emt 0:00:05]} Bd7 {[%emt 0:14:39]} 6. Nf3 {[%emt 0:02:50] C10: French with 3 Nc3: Unusual Black 3rd moves and 3...dxe4.} Qe7 {[%emt 0:02:29]} 7. O-O {[%emt 0:08:56]} Qf7 {[%emt 0:03:23]} 8. Re1 {[%emt 0:09:35] White is slightly better.} O-O-O {[%emt 0:04:35] 8...Nge7 is more fashionable.} 9. a4 {[%emt 0:13:38]} Bb4 {[%emt 0:04:41]} 10. Bd2 {[%emt 0:03:05]} Nge7 {[%emt 0:03:45] [#]} 11. Na2 $146 {[%emt 0:01:42]} ({Predecessor:} 11. Ne2 Bxd2 12. Qxd2 fxe5 13. Bxc6 Nxc6 14. dxe5 Rdf8 15. Ned4 Nxd4 16. Nxd4 Qf4 17. Qe3 {½-½ (23) Sowada,C (1944)-Wischhoefer,C (2187) Germany 2016}) 11... Bxd2 {[%emt 0:00:45]} 12. Qxd2 {[%emt 0:00:04]} g5 {[%emt 0:05:38]} 13. exf6 $1 {[%emt 0:01:47]} Qxf6 {[%emt 0:00:48]} 14. Bxc6 {[%emt 0:01:12]} Nxc6 {[%emt 0:02:03]} 15. Nb4 $1 {[%emt 0:03:25]} Nxb4 {[%emt 0:06:32]} 16. Qxb4 {[%emt 0:00:04]} Rdf8 {[%emt 0:00:07]} 17. Qd2 {[%emt 0:00:33] White is more active.} ({White should play} 17. Re2) 17... g4 $16 {[%emt 0:01:48]} 18. Ne5 {[%emt 0:00:06]} Qh4 {[%emt 0:04:13]} (18... h5 $16 {keeps fighting.}) 19. Qe3 {[%emt 0:04:29]} (19. g3 $18 Qe7 20. Nxg4) 19... Rf6 {[%emt 0:02:41]} 20. Qg3 {[%emt 0:00:03]} Qg5 {[%emt 0:00:24]} 21. Qxg4 {[%emt 0:02:34]} Qxg4 {[%emt 0:00:20][%mdl 64] Remove Defender} 22. Nxg4 {[%emt 0:00:03]} Rf4 {[%emt 0:00:05][%csl LRd4,LRg4]} 23. Ne5 {[%emt 0:01:02]} Rxd4 {[%emt 0:00:06]} 24. b3 {[%emt 0:00:08]} Rf8 {[%emt 0:05:42]} 25. Re2 {[%emt 0:00:55] Prevents Rd2.} c5 {[%emt 0:03:20]} ({Better is} 25... Rdf4) 26. g3 {[%emt 0:01:10][%cal Bg2g3,Bg3g4][%mdl 32]} Rf5 {[%emt 0:14:20]} 27. f4 {[%emt 0:00:04]} Kc7 {[%emt 0:03:10]} 28. c3 {[%emt 0:01:31]} Rxe5 {[%emt 0:02:31]} 29. fxe5 $18 {[%emt 0:07:42][%mdl 4096] Endgame KRR-KRB} (29. Rxe5 $18 Rd3 30. Rc1) 29... Rd3 $16 {[%emt 0:00:05]} 30. Rc1 {[%emt 0:00:01]} Be8 {[%emt 0:00:53]} 31. g4 {[%emt 0:03:39]} Bg6 {[%emt 0:00:30]} 32. Kf2 {[%emt 0:00:19]} Be4 {[%emt 0:01:21]} 33. Re3 {[%emt 0:00:48] Against Rh3} Rd2+ {[%emt 0:00:59] [#]} 34. Kg3 $1 {[%emt 0:00:03]} Rg2+ {[%emt 0:00:17]} 35. Kh3 {[%emt 0:00:04][%cal Oe3e4]} Rb2 {[%emt 0:01:46]} 36. b4 {[%emt 0:00:45]} cxb4 $2 {[%emt 0:00:49] This costs Black the game.} (36... c4 $16 {might work better.}) 37. cxb4+ $18 {[%emt 0:00:03]} Kb6 {[%emt 0:00:05] [#]} 38. a5+ $1 {[%emt 0:05:58]} Ka6 {[%emt 0:05:43]} 39. Rc7 {[%emt 0:00:03] Re7 is the strong threat.} Rxb4 {[%emt 0:07:17]} 40. Re7 {[%emt 0:00:20]} Kxa5 {[%emt 0:00:47]} 41. Rxe6 {[%emt 0:13:52]} b5 $2 {[%emt 0:06:24]} (41... Kb5 42. Kg3 Kc5) 42. Rf6 {[%emt 0:03:39] Black must now prevent e6.} Rc4 {[%emt 0:02:57]} 43. e6 {[%emt 0:02:31] Threatens to win with e7.} Rc8 {[%emt 0:07:21]} (43... Rc7 $142 44. Rf7 Rc6 45. Rxa7+ Kb4) 44. Ra3+ {[%emt 0:00:30]} Kb4 {[%emt 0:03:03]} 45. Rxa7 {[%emt 0:00:06]} Bg6 {[%emt 0:03:20]} 46. Rd7 {[%emt 0:02:10]} Kc5 {[%emt 0:01:35]} 47. e7 {[%emt 0:00:11][%cal Of6g6]} Re8 {[%emt 0:00:43]} 48. Rf8 {[%emt 0:00:57] White wants to mate with Rxe8.} b4 {[%emt 0:00:55]} (48... Kc6 $18) 49. Rxe8 {[%emt 0:00:34] White mates.} Bxe8 {[%emt 0:00:03] KR-KB} 50. Rd8 {[%emt 0:00:02]} Bg6 {[%emt 0:00:07]} 51. e8=Q {[%emt 0:00:05]} Bxe8 {[%emt 0:00:05]} 52. Rxe8 {[%emt 0:00:01] KR-K3P} Kc4 {[%emt 0:01:23]} 53. Kg3 {[%emt 0:00:08]} b3 {[%emt 0:00:27]} 54. Kf3 {[%emt 0:03:52]} b2 {[%emt 0:03:13]} 55. Rb8 {[%emt 0:00:05]} Kc3 {[%emt 0:00:03]} 56. Ke2 {[%emt 0:00:13]} d4 {[%emt 0:00:36]} 57. Kd1 {[%emt 0:00:23]} d3 {[%emt 0:00:06]} 58. h4 {[%emt 0:00:07] Weighted Error Value: White=0.13 (very precise) /Black=0.34} 1-0

[Event "Austrian Championship 2022"]
[Site "Vienna"]
[Date "2022.08.19"]
[Round "9.10"]
[White "Sadilek, Peter"]
[Black "Leitner, Gerald"]
[Result "1-0"]
[ECO "D15"]
[WhiteElo "2330"]
[BlackElo "2145"]
[Annotator "TA"]
[PlyCount "51"]
[EventDate "2022.08.12"]
[EventType "swiss"]
[EventCountry "AUT"]
[SourceTitle "playchess.com"]
[Source "ChessBase"]
[SourceQuality "1"]
[TimeControl "40/5400+30:1800+30"]

{[%evp 10,51,24,17,20,11,11,8,34,40,28,14,62,33,55,9,38,55,43,38,58,17,58,2,56,51,70,54,120,125,143,106,104,87,296,314,374,383,964,961,939,932,1162,1142]} 1. d4 {[%emt 0:09:39]} Nf6 {[%emt 0:00:29]} 2. Nf3 {[%emt 0:00:59]} d5 {[%emt 0:00:33]} 3. c4 {[%emt 0:00:22]} c6 {[%emt 0:00:08]} 4. Nc3 {[%emt 0:00:46]} a6 {[%emt 0:00:01]} 5. a4 {[%emt 0:05:25]} e6 {[%emt 0:02:00]} 6. g3 {[%emt 0:02:51]} Bb4 {[%emt 0:03:37] D15: Slav Defence: 4 Nc3 a6 and gambit lines after 4 Nc3 dxc4.} 7. Bg2 {[%emt 0:00:16]} O-O {[%emt 0:03:50]} 8. O-O {[%emt 0:00:22]} dxc4 {[%emt 0:03:10] The position is equal.} 9. Qc2 {[%emt 0:06:54]} Nbd7 {[%emt 0:07:57]} 10. Rd1 {[%emt 0:11:09][%mdl 1024] White has compensation.} Qa5 {[%emt 0:08:06] [#]} (10... a5 $11 {should be considered.}) 11. Bf4 $146 {[%emt 0:13:51]} ({Predecessor:} 11. Na2 Be7 12. Bf4 Nd5 13. Bd2 Qd8 14. Qxc4 a5 15. e4 N5b6 16. Qb3 Nf6 17. Nc3 {1-0 (30) Lirindzakis,T (2286)-Eleftherakis,S (1916) Anogia 2013}) 11... Nd5 {[%emt 0:14:33]} 12. Ng5 {[%emt 0:05:21]} ({Worse is} 12. Nxd5 exd5 13. h3 (13. Ng5 g6 $17) 13... Re8 $17) (12. Bd2 $14) 12... g6 {[%emt 0:00:11][%cal Rb4c3]} 13. Bd2 {[%emt 0:00:58]} Nxc3 {[%emt 0:01:47]} 14. bxc3 {[%emt 0:00:08]} Be7 {[%emt 0:00:02]} 15. h4 {[%emt 0:03:16]} Nb6 {[%emt 0:12:58]} 16. e4 {[%emt 0:03:20]} (16. Rdb1 $14) 16... f6 {[%emt 0:01:50]} (16... Bd7 $11) 17. Nf3 $14 {[%emt 0:02:22][%cal Bg5f3,Bf3d2,Bd2c4,Bc4a5][%mdl 32]} e5 {[%emt 0:00:08]} 18. Rdb1 {[%emt 0:04:20]} Bd6 {[%emt 0:09:50]} (18... Bg4 $14) 19. Be3 $16 {[%emt 0:04:18]} Bc7 {[%emt 0:02:07]} 20. Nd2 {[%emt 0:10:48]} Be6 {[%emt 0:00:23]} 21. Bf1 {[%emt 0:04:06][%cal Ob1b6] Rxb6! is the strong threat.} Rab8 $2 {[%emt 0:12:18] [#] A mistake that costs the game.} (21... Kh8 $16) 22. Rxb6 $1 $18 {[%emt 0:02:49][%mdl 512]} Bxb6 {[%emt 0:00:13]} (22... exd4 23. Bxd4) 23. Bxc4 {[%emt 0:00:03]} Bxc4 {[%emt 0:06:07]} (23... Ba7 24. Bxe6+ Kh8) 24. Nxc4 {[%emt 0:00:14] White is clearly winning.} exd4 {[%emt 0:00:01]} 25. Nxa5 {[%emt 0:00:28]} dxe3 {[%emt 0:00:03]} 26. Qb3+ {[%emt 0:00:06] Weighted Error Value: White=0.14 (very precise) /Black=0.36} 1-0